Cogmind - Beta 15 @@@ ROGUE MODE // 2025.09.16 @ 15:20:19 Player: TapeIsSticky Result: Destroyed by Vortex Trap Performance ------------- Evolutions (0) 0 Regions Visited (4) 800 Robots Destroyed (39) 195 Value Destroyed (893) 893 Prototype IDs (23) 460 Alien Tech Used (0) 0 Bonus (300) 300 TOTAL SCORE: 2648 Bonus ------- Registered with UFD 300 Cogmind --------- Core Integrity 0/250 Matter 238/300 Energy 96/100 System Corruption 1% Temperature Cool (2) Movement Treading (240) Ox1 Location -9/Scraptown Parts ------- > --- POWER (1) -------- Subdweller Power Source > --- PROPULSION (2) --- Light Treads Light Treads > --- UTILITY (2) ------ High-capacity Storage Unit > --- WEAPON (2) ------- Shotgun > --- INVENTORY (20) --- High-capacity Matter Pod (200) Rainbow Chip Powered Cannon Heavy Assault Rifle Peak State ------------ > --- POWER ------------ Subdweller Power Source > --- PROPULSION ------- Light Treads Light Treads > --- UTILITY ---------- High-capacity Storage Unit Seismic Detector > --- WEAPON ----------- Subdweller Laser Battle Rifle > --- INVENTORY -------- Subdweller Power Source Subdweller Power Source Light Treads Light Treads Light Treads Subdweller Monowheel Subdweller Monowheel Subdweller Monowheel High-capacity Matter Pod Subdweller Optics Rainbow Chip EM Shotgun EM Shotgun Subdweller Laser Subdweller Laser Powered Cannon Shotgun Light Cannon Grenade Launcher [Rating: 15] Favorites ----------- Power Ion Engine Engine Ion Engine Propulsion Light Treads Treads Light Treads Utility Seismic Detector Device Seismic Detector Storage High-capacity Storage Unit Protection Medium Armor Plating Weapon Assault Rifle Energy Gun Subdweller Laser Ballistic Gun Assault Rifle Ballistic Cannon Light Cannon Launcher Grenade Launcher Build | -11 -10 -10 -9 -9 ------- Run | Yrd Mat Sub Rec Scr Slots Evolved . | . . . . . Power . | . . . . . Propulsion . | . . . . . Utility . | . . . . . Weapon . | . . . . . Parts Attached 32 | 8 7 11 3 3 Power 4 | 1 . 2 1 . Engine 4 | 1 . 2 1 . Core . | . . . . . Reactor . | . . . . . Propulsion 5 | 2 1 1 1 . Treads 5 | 2 1 1 1 . Leg . | . . . . . Wheel . | . . . . . Hover . | . . . . . Flight . | . . . . . Utility 7 | 3 2 . . 2 Device 2 | 2 . . . . Storage 3 | 1 2 . . . Processor . | . . . . . Hackware . | . . . . . Protection 2 | . . . . 2 Artifact . | . . . . . Weapon 16 | 2 4 8 1 1 Energy Gun 6 | . . 5 1 . Energy Cannon . | . . . . . Ballistic Gun 7 | 2 3 1 . 1 Ballistic Cannon 1 | . . 1 . . Launcher 2 | . 1 1 . . Special Weapon . | . . . . . Impact Weapon . | . . . . . Slashing Weapon . | . . . . . Piercing Weapon . | . . . . . Special Melee Weapon . | . . . . . Unidentified Prototypes . | . . . . . Parts Lost 8 | . 1 5 . 2 Power 2 | . . 2 . . Propulsion 1 | . . 1 . . Utility 2 | . 1 . . 1 Weapon 3 | . . 2 . 1 Highest Loss Streak 3 | . 1 3 . 2 To Critical Strikes . | . . . . . Average Backups 15 | 2 13 18 19 14 Power 1 | . 1 1 2 . Propulsion 3 | . 2 4 6 3 Utility 2 | . 2 1 3 2 Weapon 8 | . 8 11 7 7 Tool/Special . | . . . . . Unused Backups 31 | . 12 5 . 14 Power 3 | . 2 . . 1 Propulsion 8 | . 2 . . 6 Utility 10 | . 5 1 . 4 Weapon 10 | . 3 4 . 3 Tool/Special . | . . . . . Average Slot Usage (%) 86 | . 99 99 100 67 Engine 9 | . 14 13 14 4 Treads 27 | . 27 28 28 27 Device 11 | . 13 14 14 8 Storage 13 | . 14 14 14 12 Protection 2 | . . . . 5 Energy Gun 6 | . . 7 25 5 Ballistic Gun 11 | . 27 15 1 2 Ballistic Cannon 1 | . . 4 1 . Peak Build Rating 15 | 7 9 14 15 15 Average Rating 10 | 5 8 10 14 10 On Entrance 9 | . 7 9 14 15 Naked Turns 7 | . . . . 7 Heaviest Build 58 | 13 50 52 54 58 Greatest Support 40 | 40 40 40 40 40 Greatest Overweight (x) 13 | . 1 1 1 13 Average Overweight (x) . | . . 1 1 . Largest Inventory Capacity 20 | 8 20 20 20 20 Average Capacity 18 | 7 15 20 20 18 Most Carried 20 | 4 18 20 20 20 Average Carried 16 | 2 13 18 19 15 Final Capacity 20 | 8 20 20 20 20 Final Carried 20 | 4 18 20 20 5 Class Distribution -------------------- 85% | Mutant 14% | Scavenger-Mutant Dominant Class ---------------- Mutant | -10/Materials Mutant | -10/Subcaves Scavenger-Mutant | -9/Recycling Mutant | -9/Scraptown Resources | -11 -10 -10 -9 -9 ----------- Run | Yrd Mat Sub Rec Scr Matter Collected 1505 | 293 736 386 30 60 Remotely . | . . . . . Salvage Created 1322 | 138 606 527 51 . Parts 89 | 9 35 39 6 . Haulers Intercepted 2 | . 2 . . . Recyclers Shooed 3 | . 2 . 1 . Parts Field Recycled . | . . . . . Retrieved Matter . | . . . . . Parts Self-Destructed 11 | . . 11 . . Prevented 1 | . . 1 . . Kills | -11 -10 -10 -9 -9 ------- Run | Yrd Mat Sub Rec Scr Combat Hostiles Destroyed 26 | . 9 16 1 . Guns 21 | . 9 11 1 . AOE 5 | . . 5 . . Classes Destroyed 9 | 2 4 2 1 . Tunneler 3 | 3 . . . . Hauler 2 | . 2 . . . Recycler 3 | 1 2 . . . Turret 2 | . . 2 . . Watcher 3 | . 3 . . . Swarmer 10 | . 3 7 . . Grunt 7 | . 6 1 . . Sentry 1 | . . . 1 . Subdweller 8 | . . 8 . . Best Kill Streak 5 | 2 5 4 1 . Combat Bots Only 5 | . 5 4 1 . Max Kills in Single Turn 2 | 1 1 2 1 . Gunslinging . | . . . . . Exploded 2 | . . 2 . . Melee . | . . . . . Uniques/NPCs Destroyed . | . . . . . Combat | -11 -10 -10 -9 -9 -------- Run | Yrd Mat Sub Rec Scr Hostile Shots Fired 151 | . 55 96 . . Missed 53 | . 19 34 . . Hits 98 | . 36 62 . . Projectile 98 | . 36 62 . . Critical Strikes 1 | . . 1 . . Damage Taken 1489 | . 443 872 . 174 Core 277 | . 53 150 . 74 Absorbed by Shields . | . . . . . Regen/Repaired (Parts) 177 | . 177 . . . Core Remaining (%) 100 | 100 . . . . Volleys Fired 124 | 9 58 55 2 . Largest 2 | 2 2 2 2 . Hottest 120 | 40 40 90 120 . Shots Fired 223 | 18 113 88 4 . Gun 206 | 18 110 74 4 . Cannon . | . . . . . Launcher 17 | . 3 14 . . Special . | . . . . . Kinetic 135 | 18 110 7 . . Thermal 19 | . . 15 4 . Explosive 17 | . 3 14 . . Electromagnetic 52 | . . 52 . . Robot Hit Streak 20 | 7 11 18 20 . Robot Miss Streak 4 | 3 4 2 1 . Penetration Max . | . . . . . Secondary Targets 3 | . 2 1 . . Max Gunslinging Chain 1 | . 1 1 . . Shots Hit Robots 134 | 11 68 53 2 . Core Hits 91 | 7 29 54 1 . Critical Kills 1 | . 1 . . . Critical Parts Destroyed . | . . . . . Critical Strikes 2 | . 1 1 . . Destroy 2 | . 1 1 . . Melee Attacks . | . . . . . Impact . | . . . . . Slashing . | . . . . . Piercing . | . . . . . Sneak Attacks . | . . . . . Combat Hostiles . | . . . . . Follow-up Attacks . | . . . . . Damage Inflicted 2297 | 106 969 1163 53 6 Guns 1829 | 102 919 764 44 . Cannons . | . . . . . Explosions 399 | . . 399 . . Melee . | . . . . . Ramming 69 | 4 50 . 9 6 Kinetic 1043 | 102 919 22 . . Thermal 245 | . . 201 44 . Explosive 325 | . . 325 . . Electromagnetic 615 | . . 615 . . Impact . | . . . . . Slashing . | . . . . . Piercing . | . . . . . Highest Corruption 1 | . . . . 1 Average Corruption 1 | . . . . 1 Corruption Purged . | . . . . . Corruption Blocked . | . . . . . Effects 4 | . . . . 4 Message Errors 2 | . . . . 2 Matter Fused 1 | . . . . 1 Energy Discharges 1 | . . . . 1 Overload Shots . | . . . . . Overflow Damage . | . . . . . Projectiles . | . . . . . Explosions . | . . . . . Melee . | . . . . . Knockbacks . | . . . . . Impact . | . . . . . Kinetic . | . . . . . Secondary . | . . . . . Self-Inflicted Damage 81 | . 32 43 . 6 Shots 3 | . 1 2 . . Rammed 9 | 3 5 . 1 . Targets Rammed 9 | 3 5 . 1 . Kicked . | . . . . . Crushed . | . . . . . Highest Temperature 241 | . 8 241 60 . Average Temperature 40 | . 2 107 31 . Received Heat Transfer 639 | . 198 441 . . Effects 1 | . . 1 . . Energy Bleed 1 | . . 1 . . Siege Activations . | . . . . . Martial Activations . | . . . . . Shielding Activations . | . . . . . Robots Disrupted 1 | . . 1 . . Combat Hostiles 1 | . . 1 . . Robots Corrupted . | . . . . . Combat Hostiles . | . . . . . Parts Fried 3 | . . 3 . . Impact Corruptions . | . . . . . Robots Melted . | . . . . . Combat Hostiles . | . . . . . Parts Melted 1 | . . 1 . . Heat Transferred 300 | . . 250 50 . Parts Sabotaged . | . . . . . Parts Stolen . | . . . . . Parts Stripped . | . . . . . Power Chain Reactions 1 | . . 1 . . Alert | -11 -10 -10 -9 -9 ------- Run | Yrd Mat Sub Rec Scr Maximum Alert Level 1 | . . . 1 . Low Security (%) 99 | 100 100 . 96 . Level 1 . | . . . 3 . Level 2 . | . . . . . Level 3 . | . . . . . Level 4 . | . . . . . Level 5 . | . . . . . High Security . | . . . . . Max Security . | . . . . . Peak Influence 202 | 5 128 . 202 . Initial 184 | . 3 . 184 . Average 40 | . 25 . 103 . Influence Increases 970 | 20 320 565 65 . Destroy 0b10 Robot/C 400 | . 180 200 20 . Destroy 0b10 Robot/NC 55 | 20 35 . . . Destroy Leader 60 | . 40 20 . . Successful Hack 29 | . 14 . 15 . Select Force Hacks 30 | . . . 30 . Destroy Structure 21 | . 21 . . . Lose Combat Pursuer 375 | . 30 345 . . Influence Decreases 970 | 15 311 195 449 . Entered New Map 209 | . 2 7 200 . Time Decay 711 | 15 299 148 249 . Lost Part 50 | . 10 40 . . Squads Dispatched 1 | . 1 . . . Investigation 1 | . 1 . . . Extermination . | . . . . . Reinforcement . | . . . . . Assault . | . . . . . Garrison . | . . . . . Intercept . | . . . . . Searches Triggered . | . . . . . Construction Impeded . | . . . . . Haulers Reinforced . | . . . . . Active Scanning Responses . | . . . . . Cargo Convoy Interrupts . | . . . . . Stealth | -11 -10 -10 -9 -9 --------- Run | Yrd Mat Sub Rec Scr Distress Signals 1 | . 1 . . . Communications Jammed . | . . . . . Distress Signals . | . . . . . Times Spotted 41 | . 15 26 . . Peak Tracking Total 6 | . 5 6 . . Tactical Retreats 6 | . 1 5 . . Traps | -11 -10 -10 -9 -9 ------- Run | Yrd Mat Sub Rec Scr Traps Triggered 2 | . 1 . . 1 Indirectly . | . . . . . Trap Hack Attempts . | . . . . . Triggered . | . . . . . Disarmed 4 | . 4 . . . Reprogrammed . | . . . . . Reused . | . . . . . Traps Extracted . | . . . . . Installed 1 | . . . . 1 Triggered . | . . . . . Most Traps Carried 1 | . . . . 1 Machines | -11 -10 -10 -9 -9 ---------- Run | Yrd Mat Sub Rec Scr Machines Disabled 4 | . . 4 . . Max in Single Turn 2 | . . 2 . . Machines Repaired . | . . . . . Machines Dismantled . | . . . . . Machines Sabotaged . | . . . . . Overloaded Fab Kills . | . . . . . Hacking | -11 -10 -10 -9 -9 --------- Run | Yrd Mat Sub Rec Scr Machines Accessed 14 | . 8 1 3 2 Terminals 8 | . 6 . 2 . Fabricators . | . . . . . Repair Stations 1 | . 1 . . . Recycling Units 2 | . 1 . 1 . Scanalyzers . | . . . . . Garrison Access . | . . . . . Total Hacks 39 | . 25 1 8 5 Successful 29 | . 17 1 6 5 Failed 9 | . 7 . 2 . Catastrophic 1 | . 1 . . . Database Lockouts 1 | . 1 . . . Manual 27 | . 19 . 8 . Terminals 25 | . 18 . 7 . Fabricators . | . . . . . Repair Stations 6 | . 6 . . . Recycling Units 2 | . 1 . 1 . Scanalyzers . | . . . . . Garrison Access . | . . . . . Terminal Hacks 11 | . 4 1 1 5 Record 4 | . . . . 4 Robot Analysis 3 | . 3 . . . Disarm Traps 1 | . 1 . . . Security Status 1 | . . . 1 . Proto ID Catalog 2 | . . 1 . 1 Fabricator Hacks . | . . . . . Repair Station Hacks 5 | . 5 . . . Scan Component 3 | . 3 . . . Repair 2 | . 2 . . . Recycling Unit Hacks . | . . . . . Scanalyzer . | . . . . . Garrison Access Hacks . | . . . . . Unauthorized Hacks 13 | . 8 . 5 . Terminals 12 | . 8 . 4 . Botnet 5 | . 3 . 2 . Skim 7 | . 5 . 2 . Fabricators . | . . . . . Repair Stations . | . . . . . Recycling Units 1 | . . . 1 . Tunnel 1 | . . . 1 . Scanalyzers . | . . . . . Garrison Access . | . . . . . Data Cores Recovered . | . . . . . Used . | . . . . . Hacking Detections 8 | . 7 . 1 . Full Trace Events . | . . . . . Feedback Events . | . . . . . Feedback Blocked . | . . . . . Robot Schematics Acquired . | . . . . . Robots Built . | . . . . . Authchips . | . . . . . Time . | . . . . . Total Robot Build Rating . | . . . . . Part Schematics Acquired . | . . . . . Parts Built . | . . . . . Authchips . | . . . . . Time . | . . . . . Total Part Build Rating . | . . . . . Parts Repaired 2 | . 2 . . . Time 52 | . 52 . . . Parts Recycled . | . . . . . Recycled Matter . | . . . . . Retrieved Matter . | . . . . . Retrieved Components . | . . . . . Parts Scanalyzed . | . . . . . Part Schematics Acquired . | . . . . . Parts Damaged . | . . . . . Bothacking | -11 -10 -10 -9 -9 ------------ Run | Yrd Mat Sub Rec Scr Used RIF Installer . | . . . . . Robots Hacked . | . . . . . Non-combat . | . . . . . Combat . | . . . . . Robot Hacks Applied . | . . . . . Relay Couplers Released . | . . . . . Fabnet Peak Effective % . | . . . . . Robots Rewired . | . . . . . Allies Hacked . | . . . . . Hacks Repelled . | . . . . . Allies | -11 -10 -10 -9 -9 -------- Run | Yrd Mat Sub Rec Scr Total Allies . | . . . . . Largest Group . | . . . . . Highest-Rated Group . | . . . . . Highest-Rated Ally . | . . . . . Total Orders . | . . . . . Ally Attacks . | . . . . . Total Damage . | . . . . . Kills . | . . . . . Allies Corrupted . | . . . . . Allies Melted . | . . . . . Intel | -11 -10 -10 -9 -9 ------- Run | Yrd Mat Sub Rec Scr Active Infowar (turns) 8683 | 101 1834 3523 588 2637 Seismic 8683 | 101 1834 3523 588 2637 Robot Analysis Total 3 | . 3 . . . Derelict Logs Recovered 7 | . . 2 . 5 Drone Launches . | . . . . . Drone Recoveries . | . . . . . Exploration | -11 -10 -10 -9 -9 ------------- Run | Yrd Mat Sub Rec Scr Turns Passed 10546 | 210 1880 3523 588 4345 Spaces Moved 4407 | 75 880 1362 239 1851 Core 30 | 5 . . . 25 Treads 4377 | 70 880 1362 239 1826 Legs . | . . . . . Wheels . | . . . . . Hover . | . . . . . Flight . | . . . . . Fastest Speed 50 | 50 160 240 240 50 Average Speed 223 | 152 177 240 240 233 Slowest Speed 700 | 160 240 240 240 700 Overloaded Moves . | . . . . . Propulsion Burnouts . | . . . . . Robots Hopped . | . . . . . Potential Cave-ins . | . . . . . Cave-ins Triggered . | . . . . . Exploration Rate (%) 60 | 6 99 61 51 84 Regions Visited 4 Branch Regions 3 Pre-discovered Areas 4 | . . . 1 3 Known Exits Taken . | . . . . . Unknown Exits Taken 4 | 1 1 1 1 . Scrap Searched 5 | . . . . 5 Spaces Dug 17 | . 12 5 . . Terrain Destroyed 59 | . 20 39 . . Melee . | . . . . . Projectile . | . . . . . AOE 59 | . 20 39 . . Terrain Rammed 1 | . . . . 1 Walls Destroyed . | . . . . . Machines Disabled . | . . . . . Actions | -11 -10 -10 -9 -9 --------- Run | Yrd Mat Sub Rec Scr Total 4908 | 151 1092 1528 250 1887 Wait 219 | 53 95 71 . . Move 4403 | 74 879 1361 238 1851 Hop . | . . . . . Pick Up 53 | 4 27 15 2 5 Fast Attach 14 | 6 1 . . 7 Attach 10 | 1 1 5 . 3 Detach . | . . . . . Swap 29 | 1 10 12 4 2 Drop 45 | . 16 9 3 17 Fire 124 | 9 58 55 2 . Melee . | . . . . . Ram 1 | . . . . 1 Kick . | . . . . . Crush 9 | 3 5 . 1 . Escape Stasis . | . . . . . Rewire . | . . . . . Trap 1 | . . . . 1 Miscellaneous . | . . . . . Route ------- -11/Scrapyard -10/Materials (discovered 5 exits: *Mat x3 / *Min / *Sub) -10/Subcaves (discovered 3 exits: [*Mat x2] / *Rec) -9/Recycling (discovered 2 exits: Fac / *Scr) -9/Scraptown (discovered 1 exit: [*Fac]) History --------- Turn | Location | Event 3 | -11/Scrapyard | Discovered new exit (range 15) 211 | -11/Scrapyard | Entered Materials 303 | -10/Materials | Build established: Mutant 456 | -10/Materials | Discovered new exit (range 5) 614 | -10/Materials | Central database locked down 707 | -10/Materials | Discovered new exit (range 4) 763 | -10/Materials | Identified exit to Materials 802 | -10/Materials | Learned location of 1 exit from Recycling 844 | -10/Materials | Learned 4 Recycling zone layouts 851 | -10/Materials | Identified exit to Mines 866 | -10/Materials | Learned location of 2 exits from Mines 890 | -10/Materials | Loaded intel: 20 non-interactive machine locations 1224 | -10/Materials | Discovered new exit (range 7) 1950 | -10/Materials | Repaired Lgt. Treads 1977 | -10/Materials | Repaired Lgt. Treads 2091 | -10/Materials | Entered Subcaves 2128 | -10/Subcaves | Learned Materials trap positions 2988 | -10/Subcaves | Discovered new exit (range 5) 3169 | -10/Subcaves | Shifting Twisted Machinery released Sub. Laser 3180 | -10/Subcaves | Discovered new exit (range 3) 3182 | -10/Subcaves | Shifting Twisted Machinery released Flamer 3754 | -10/Subcaves | Learned Materials garrison access intel 3866 | -10/Subcaves | Visited 4L-MR0's lab 4154 | -10/Subcaves | Shifting Twisted Machinery released Sub. Monowheel 4346 | -10/Subcaves | Shifting Twisted Machinery released Sub. Monowheel 4371 | -10/Subcaves | Discovered new exit (range 12) 4978 | -10/Subcaves | A Subdweller sparked back to life 4978 | -10/Subcaves | A Subdweller sparked back to life 4978 | -10/Subcaves | A Subdweller sparked back to life 4981 | -10/Subcaves | Core integrity fell below 50% 4993 | -10/Subcaves | Core integrity fell below 20% 5004 | -10/Subcaves | Found Rainbow Chip 5015 | -10/Subcaves | Lost 3 parts (1n2w) 5284 | -10/Subcaves | Build established: Scavenger-Mutant 5366 | -10/Subcaves | Found Powered Cannon 5614 | -10/Subcaves | Entered Recycling 5615 | -9/Recycling | Identified exit to Factory 6104 | -9/Recycling | Scanned before Scraplab entrance 6176 | -9/Recycling | Entered Scraplab 6195 | -9/Recycling | Discovered new exit (range 3) 6202 | -9/Recycling | Entered Scraptown 6409 | -9/Scraptown | Scanned Subdweller tech in exchange for log data 6414 | -9/Scraptown | Learned location of Testing (-3) 6416 | -9/Scraptown | Learned location of Warlord (-4) 6421 | -9/Scraptown | Learned Research terminal intel 6423 | -9/Scraptown | Learned location of Extension (-6) 6426 | -9/Scraptown | Learned 8 Factory zone layouts 6599 | -9/Scraptown | Visited UFD Registry 6599 | -9/Scraptown | Registered with UFD as "Shadowcycle" 6724 | -9/Scraptown | Discovered new exit (range 7) 6784 | -9/Scraptown | Guru changed UFD alias to "Armorhead" 6791 | -9/Scraptown | Build established: Mutant 7036 | -9/Scraptown | Visited A0-MCA Data Center 7050 | -9/Scraptown | Given a D+ rating by A0-MCA 7055 | -9/Scraptown | Found A0-MCA's Component Scanner 7101 | -9/Scraptown | Visited Infowarlord's Domain 7140 | -9/Scraptown | Visited Scrapoid Pod Storage 7327 | -9/Scraptown | Visited Junk Repository 7382 | -9/Scraptown | Visited Analyses Database 7421 | -9/Scraptown | Visited Research Penetration Think Tank 7464 | -9/Scraptown | Visited Botcube Research 7505 | -9/Scraptown | Visited Abandonware Association 7533 | -9/Scraptown | Learned abandonware demo "OVRCLOCK.EXE" 7541 | -9/Scraptown | Learned abandonware demo "TRNCOAT.EXE" 7603 | -9/Scraptown | Visited Chapter 10 7646 | -9/Scraptown | Visited Science Guys 10429 | -9/Scraptown | Warned about trapping Scraptown 10547 | -9/Scraptown | Destroyed by Vortex Trap Last Messages --------------- 10056_ System corrupted: Energy discharge (-17). 10059_ Acquired EM Shotgun. 10209_ Acquired 33 matter. 10248_ System corrupted: Matter fused (-5). 10363_ Acquired Hcp. Storage Unit. 10378_ ME-ZYR(p) closely examines the mainframe. 10406_ H1:W2>BEHM ZXJVSHS/VFVU&&65E#B,6J 10410_ Acquired Vortex Trap. 10427_ Dropped Vortex Trap. 10428_ Installed Vortex Trap. 10429_ ANNOUNCEMENT: Tracking potentially hostile trap installation. 10501_ &,THGA1>E:IKD,SY#EQJDDFXFL:PQ 10547_ System corruption misinterpreted. 10547_ Triggered Vortex Trap. 10547_ A wave of accelerated entropy washes over the area. 10547_ Med. Armor Plating destroyed. 10547_ EM Shotgun destroyed. Map ----- +----------------------------------------------------+ | ?????????????????????????????????????????????????? | | ###########??????????????????????????????????????? | | #"""""""""#??????????????????????????????????????? | | #" "#??????????????????????????????????????? | | """ "#??????????????????????????????????????? | | #" "" "#??????????????????????????????????????? | | #" " "#??????????????????????????????????????? | | #" "#??????????????????????????????????????? | | #"" """"""#??????????????????????????????????????? | | #??????????????????????????????????????? | | #??????????????????????????????????????? | | #???????????????????????################ | | " """"#####???????????????????????"""##"""##""|##" | | ]!%"#???????????????????????????"" ##""!##""|##! | | [""#??????????????????????????#"" | | """#??????????????????????????# | | """#??????????????????????????################# | | """"""#??????????????????????????????????????????? | | #######??????????????#############???????????????? | | ?????????????????????#"""""""""""#??########?????? | | ?????????????????????#""""" X """#??""""""""??#### | | ???#?????????????????#""" c """"#?? " ##?#""" | | #?# ?""??????????????#"c "|""##"" #?# " | | #?# ?" ? ????????????#""" """"##"" #?# | | #?# ? ??????????#"""" c ""##"""" #?# " | | #?# " ??????????#"" @ c ##"" " #?# " | | #?# " ??????????#"" c"" " ##"""" #?# " | | #?# " ??????????#"" "" "&##"" #?# " | | #?# "" ???????????# "##" #### | | #?? """"????????????#" ## ## | | #??# ??????????????###### ########### ########## | | #### ##########???????##### ########### ########## | | #???????#"""" """"""""""" """""""""" | | #???????#" | | #???????#" [!= | | #???????#" [ = | | #???????#" ]]= | | ##### #???#####" = | | ????# #???#"""" """"""""""""""""""""" | | ????# #???#"""" """"""""""""""""""""" | | ????# #???#"""" ""###### ########### | | ????# #???#"""" ""#??? ????????? | | ????# #???#"""" ""#?? ???????? | | ????# ###?#"""" ""#? "" "" ??????? | | ????# ""#"#"""" ""#? "" "" ??????? | | ????# """"#"""" ""# " ? ??##### | | ????# ""#######" "" "" ? | | ????# ###?????#" "" "" ? | | ????# #########" ""# " ? ??##### | | ????# ""# "" "" ??????? | +----------------------------------------------------+ Best States ------------- Heat Dissipation 25 Energy Generation 15 Energy Capacity 250 Matter Stores 300 Matter Capacity 300 Sight Range 16 Terrain Scan Density 10 Armor Coverage 225 Power Shielding 33 Evasion (%) 50 Recoil Reduction 2 Item Schematics ----------------- None Robot Schematics ------------------ None Fabricated ------------ Nothing Repaired ---------- Lgt. Treads | 1% | -10/Materials Lgt. Treads | 72% | -10/Materials Alien Tech Used ----------------- None Achievements -------------- None Challenges ------------ None Game ------ Seed GravitonRelayNeutralizer Manual? 0 Play Time 00:28:15 Cumulative 207.2 hours Start 2025.09.16 @ 14:49:32 End 2025.09.16 @ 15:20:19 Sessions 3 Manual Loads 0 Difficulty Rogue Special Mode None Game No. 115 Rogue 115 Adventurer 0 Explorer 0 Win Type - Total 23 Types 10/1/8/1/0/1/1/1/0/0 Lore% 76 Gallery% 67 Achievement% 72 Wizard Run 0 Options --------- Layout 1 ASCII 0 Keyboard 0 Movement Arrows Keybinds 0 Fullscreen 2 Font 24/Tamsyn Map View 50x35 Zoom Use 0% Tactical HUD 1 Map Filters NONE Filters NONE Steam 1 RUN: 4c8f659c-6c20-40f7-a423-563af8921826